bitfinex-derivatives/quotes_BTCF0:USTF0_20250501
["timestamp","ask_amount","ask_price","bid_price","bid_amount"]
[1746129815974,0.22773101,96366.0,96365.0,0.00893158]
[1746129816770,0.21477384,96366.0,96365.0,0.00893158]
[1746129824870,0.31854584,96366.0,96365.0,0.00893158]
[1746129825069,0.21477384,96366.0,96365.0,0.00893158]
[1746129830566,0.21477384,96366.0,96357.0,0.3623567]
[1746129830567,0.2074866,96358.0,96357.0,0.3623567]
[1746129832274,0.10378001,96358.0,96329.0,0.3608]
[1746129832474,0.207562,96323.0,96310.0,0.3608]
[1746129832776,0.051889,96326.0,96310.0,0.3932]
[1746129832777,0.2075878,96311.0,96310.0,0.3932]
[1746129833174,0.2075878,96311.0,96310.0,0.6007884]
[1746129833376,0.00011163,96311.0,96310.0,0.6007884]
[1746129833580,0.00011163,96311.0,96310.0,0.6749884]
[1746129833875,0.00111163,96311.0,96310.0,0.69184031]
[1746129834080,0.010923,96322.0,96321.0,0.2075663]
[1746129834280,0.0518877,96329.0,96321.0,0.3608]
[1746129834476,0.01109825,96334.0,96333.0,0.2075404]
[1746129834675,0.3608,96357.0,96331.0,0.6007441]
[1746129834676,0.2075414,96333.0,96331.0,0.6007441]
[1746129834883,0.2075414,96333.0,96331.0,0.2399441]
[1746129835180,8.555e-05,96332.0,96331.0,0.2399441]
[1746129835374,0.20762815,96332.0,96331.0,0.2399441]
[1746129835574,0.19518651,96332.0,96331.0,0.2399441]
[1746129836184,0.19518651,96332.0,96331.0,0.2429441]
[1746129836478,0.19518651,96332.0,96331.0,0.0354]
[1746129836873,0.19518651,96332.0,96331.0,0.3962]
[1746129836874,0.19530824,96332.0,96331.0,0.3962]
[1746129837280,0.19630824,96332.0,96331.0,0.6077447]
[1746129837472,0.19630824,96332.0,96331.0,0.4002]
[1746129838281,0.19630824,96332.0,96331.0,0.6077447]
[1746129838676,0.19630824,96332.0,96331.0,0.4002]
[1746129842775,0.18334668,96332.0,96331.0,0.4002]
[1746129844285,0.21414668,96332.0,96331.0,0.4002]
[1746129844473,0.18334668,96332.0,96331.0,0.6077447]
[1746129845380,0.00112173,96332.0,96331.0,0.6077447]
[1746129847278,0.0015,96340.0,96331.0,0.50400799]
[1746129847485,0.01232998,96340.0,96339.0,0.5683275]
[1746129847671,0.0015,96340.0,96339.0,0.5683275]
[1746129847875,0.0015,96340.0,96339.0,0.6325275]
[1746129848684,0.0025,96340.0,96339.0,0.6335275]
[1746129849279,0.01240837,96340.0,96339.0,0.6355275]
[1746129849587,0.0015,96340.0,96339.0,0.6355275]
[1746129850186,0.0025,96340.0,96339.0,0.6375275]
[1746129850684,0.0025,96340.0,96339.0,0.6365275]
[1746129850878,0.0025,96340.0,96339.0,0.6395275]
[1746129851274,0.0025,96340.0,96339.0,0.6365275]
[1746129851478,0.0025,96340.0,96339.0,0.6395275]
[1746129851879,0.01343994,96340.0,96339.0,0.6395275]
[1746129852185,0.0025,96340.0,96339.0,0.6395275]
[1746129852377,0.0025,96340.0,96339.0,0.6365275]
[1746129852576,0.0025,96340.0,96339.0,0.6395275]
[1746129852774,0.2100254,96340.0,96339.0,0.432]
[1746129852981,0.22073563,96340.0,96339.0,0.038]
[1746129853782,0.28383563,96340.0,96339.0,0.038]
[1746129855182,0.28283563,96340.0,96339.0,0.031]
[1746129855386,0.28283563,96340.0,96339.0,0.035]
[1746129855885,0.28283563,96340.0,96339.0,0.004]
[1746129856276,0.19459258,96327.0,96326.0,0.0316]
[1746129857183,0.25809258,96327.0,96326.0,0.0316]
[1746129857385,0.207562,96323.0,96322.0,0.07248]
[1746129857571,0.207562,96323.0,96322.0,0.2800441]
[1746129857980,0.207562,96323.0,96322.0,0.07248]
[1746129858184,0.207562,96323.0,96322.0,0.2800441]
[1746129858582,0.208562,96323.0,96322.0,0.07848]
[1746129858986,0.208562,96323.0,96322.0,0.08248]
[1746129859380,0.208562,96323.0,96322.0,0.2900441]
[1746129859582,0.208562,96323.0,96322.0,0.01]
[1746129859785,0.0528909,96323.0,96319.0,0.3608]
[1746129859987,0.2075684,96320.0,96319.0,0.3608]
[1746129860183,0.19512533,96320.0,96319.0,0.3608]
[1746129860372,0.2075845,96313.0,96310.0,0.05974921]
[1746129860577,0.2075845,96313.0,96312.0,0.3608]
[1746129861381,0.2075845,96313.0,96312.0,0.5683835]
[1746129861783,0.2085845,96313.0,96312.0,0.5733835]
[1746129861983,0.2085845,96313.0,96312.0,0.5753835]
[1746129863282,0.2085845,96313.0,96312.0,0.6073835]
[1746129863484,0.2085845,96313.0,96312.0,0.3998]
[1746129864385,0.2085845,96313.0,96312.0,0.3678]
[1746129865282,0.5693845,96313.0,96312.0,0.007]
[1746129865583,0.2076094,96301.0,96300.0,1e-07]
[1746129865981,0.3114494,96301.0,96300.0,1e-07]
[1746129867093,0.2076374,96288.0,96287.0,0.00155783]
[1746129868492,0.0204498,96288.0,96287.0,0.21798482]
[1746129868686,0.2280872,96288.0,96287.0,0.21019743]
[1746129869083,0.2280872,96288.0,96287.0,0.00255783]
[1746129870294,0.5888872,96288.0,96287.0,0.01019977]
[1746129870488,0.5888872,96288.0,96275.0,0.00103869]
[1746129870489,0.2076633,96276.0,96275.0,0.00103869]
[1746129870693,0.19521744,96276.0,96275.0,0.00103869]
[1746129871195,0.19521744,96276.0,96275.0,0.00880819]
[1746129871397,0.19521744,96276.0,96275.0,0.00103869]
[1746129871581,0.001,96276.0,96275.0,0.20870419]
[1746129871786,0.001,96276.0,96275.0,0.27010419]
[1746129872084,0.001,96276.0,96275.0,0.30530419]
[1746129872284,0.2086633,96276.0,96275.0,0.30530419]
[1746129873181,0.001,96276.0,96275.0,0.30530419]
[1746129873887,0.001,96276.0,96275.0,0.31318414]
[1746129874288,0.2076599,96278.0,96277.0,0.2076612]
[1746129874689,0.0308,96287.0,96283.0,0.0519119]
[1746129874889,0.2076413,96287.0,96286.0,0.2076417]
[1746129875299,0.2076336,96286.0,96285.0,0.3608]
[1746129875501,0.2380336,96286.0,96285.0,0.3608]
[1746129876898,0.2410336,96286.0,96285.0,0.3608]
[1746129877891,0.2430336,96286.0,96285.0,0.3608]
[1746129880794,0.2076285,96283.0,96282.0,0.2076272]
[1746129881295,0.23005682,96286.0,96285.0,0.2076229]
[1746129881888,0.22805682,96286.0,96285.0,0.2076229]
[1746129882101,0.22505682,96286.0,96285.0,0.2076229]
[1746129882798,0.22905682,96286.0,96285.0,0.2076229]
[1746129883104,0.2076233,96285.0,96280.0,0.051908]
[1746129883402,0.02143442,96286.0,96278.0,0.0716]
[1746129883403,0.006,96286.0,96285.0,0.2076229]
[1746129883788,0.01936356,96289.0,96288.0,0.2076164]
[1746129883997,0.0015,96305.0,96300.0,0.2075905]
[1746129884202,0.0015,96305.0,96304.0,0.2075819]
[1746129885300,0.00154606,96305.0,96304.0,0.2075819]
[1746129885892,0.00854606,96305.0,96304.0,0.2075819]
[1746129886397,0.02862943,96305.0,96304.0,0.2075819]
[1746129886594,0.00254606,96305.0,96304.0,0.2085819]
[1746129887098,0.00754606,96305.0,96304.0,0.2085819]
[1746129887491,0.00754606,96305.0,96304.0,0.2389819]
[1746129887692,0.00254606,96305.0,96304.0,0.2399819]
[1746129888395,0.02090796,96305.0,96304.0,0.2389819]
[1746129888698,0.02190796,96305.0,96304.0,0.2399819]
[1746129888898,0.05190796,96305.0,96304.0,0.2399819]
[1746129891397,0.03946271,96305.0,96304.0,0.2399819]
[1746129891700,0.03,96305.0,96304.0,0.2399819]
[1746129891903,0.02649858,96305.0,96304.0,0.2399819]
[1746129892103,0.04629922,96305.0,96304.0,0.2399819]
[1746129893202,0.2075531,96319.0,96318.0,0.2075468]
[1746129894296,0.2105531,96319.0,96318.0,0.2075468]
[1746129894602,0.2145531,96319.0,96318.0,0.2085468]
[1746129894794,0.233801,96319.0,96318.0,0.2085468]
[1746129895198,0.233801,96319.0,96318.0,0.001]
[1746129895392,0.233801,96319.0,96318.0,0.2085517]
[1746129895802,0.233801,96319.0,96318.0,0.001]
[1746129896100,0.233801,96319.0,96307.0,0.2075748]
[1746129896101,0.2594714,96308.0,96307.0,0.2075748]
[1746129896300,0.2075776,96308.0,96307.0,0.2075748]
[1746129896504,0.2708776,96308.0,96307.0,0.2075748]
[1746129896799,0.2708776,96308.0,96292.0,0.064]
[1746129896800,0.2076078,96292.0,96291.0,0.03630858]
[1746129897006,0.2076078,96292.0,96291.0,0.24391848]
[1746129897596,0.2712078,96292.0,96291.0,0.24391848]
[1746129897797,0.2712078,96292.0,96291.0,0.2076099]
[1746129898505,0.2742078,96292.0,96291.0,0.2086099]
[1746129898811,0.2732078,96292.0,96291.0,0.5694099]
[1746129899009,0.2431078,96292.0,96291.0,0.3618]
[1746129899197,0.2431078,96292.0,96291.0,0.5694099]
[1746129899397,0.2431078,96292.0,96291.0,0.5995099]
[1746129899998,0.2431078,96292.0,96291.0,0.6310099]
[1746129900302,0.2421078,96292.0,96291.0,0.6310099]
[1746129900508,0.2441078,96292.0,96291.0,0.6310099]
[1746129900904,0.3608,96321.0,96291.0,0.4234]
[1746129901114,0.2594603,96315.0,96314.0,0.2075539]
[1746129901316,0.2075604,96314.0,96313.0,0.0935]
[1746129901610,0.2594579,96313.0,96312.0,0.2075628]
[1746129902006,0.3215579,96313.0,96312.0,0.2075628]
[1746129903810,0.3225579,96313.0,96312.0,0.2075628]
[1746129904011,0.3235579,96313.0,96312.0,0.2075628]
[1746129904410,0.2914579,96313.0,96312.0,0.2075628]
[1746129904615,0.002,96313.0,96312.0,0.2075628]
[1746129905200,0.002,96313.0,96312.0,0.3075628]
[1746129905414,0.2095625,96313.0,96312.0,0.3075628]
[1746129905926,0.002,96313.0,96312.0,0.3075628]
[1746129906302,0.002,96313.0,96312.0,0.3790828]
[1746129906907,0.01987317,96319.0,96318.0,0.2075517]
[1746129907112,0.0518841,96325.0,96324.0,0.2075367]
[1746129907618,0.1165841,96325.0,96324.0,0.2075367]
[1746129907814,0.29212451,96325.0,96324.0,0.2075367]
[1746129908617,0.26002451,96325.0,96324.0,0.2075367]
[1746129909520,0.26302451,96325.0,96324.0,0.2075367]
[1746129909904,0.26302451,96325.0,96317.0,0.3608]
[1746129909905,0.2075517,96318.0,96317.0,0.3608]
[1746129910216,0.2075517,96318.0,96317.0,0.5683539]
[1746129910416,0.3059477,96320.0,96319.0,0.2075496]
[1746129910605,0.0654,96320.0,96319.0,0.2075496]
[1746129910810,0.0326,96320.0,96319.0,0.2075496]
[1746129911715,0.0326,96320.0,96319.0,0.5683496]
[1746129912111,0.2401475,96320.0,96319.0,0.3608]
[1746129912516,0.2401475,96320.0,96319.0,0.2075497]
[1746129912721,0.0518889,96317.0,96295.0,0.3608]
[1746129913016,0.2075993,96296.0,96295.0,0.5684014]
[1746129913434,0.2075993,96296.0,96295.0,0.3608]
[1746129913623,0.2075993,96296.0,96295.0,0.5684014]
[1746129913824,0.2729993,96296.0,96295.0,0.5714014]
[1746129914024,0.2729993,96296.0,96295.0,0.5754014]
[1746129914415,0.2729993,96296.0,96295.0,0.5734014]
[1746129914815,0.2729993,96296.0,96295.0,0.5704014]
[1746129915223,0.2729993,96296.0,96295.0,0.002]
[1746129916416,0.2729993,96296.0,96295.0,0.001]
[1746129916621,0.2729993,96296.0,96295.0,0.003]
[1746129916925,0.2729993,96296.0,96295.0,0.2106014]
[1746129917128,0.2729993,96296.0,96295.0,0.2096014]
[1746129917321,0.2739993,96296.0,96295.0,0.2086014]
[1746129917717,0.2739993,96296.0,96295.0,0.2406014]
[1746129917921,0.0664,96296.0,96295.0,0.2406014]
[1746129918216,0.5683669,96311.0,96310.0,0.2075691]
[1746129918627,0.2075669,96311.0,96310.0,0.2075691]
[1746129918822,0.2075596,96318.0,96317.0,0.2075518]
[1746129919217,0.2394596,96318.0,96317.0,0.2075518]
[1746129919618,0.2721596,96318.0,96317.0,0.2075518]
[1746129920314,0.2761596,96318.0,96317.0,0.2075518]
[1746129920624,0.2771596,96318.0,96317.0,0.2085518]
[1746129920828,0.2781596,96318.0,96317.0,0.2085518]
[1746129921227,0.2731596,96318.0,96317.0,0.2075518]
[1746129921414,0.2751596,96318.0,96317.0,0.2075518]
[1746129921618,0.0676,96318.0,96317.0,0.2075518]
[1746129921929,0.0357,96318.0,96317.0,0.2075518]
[1746129922126,0.0347,96318.0,96317.0,0.2075518]
[1746129922329,0.0357,96318.0,96317.0,0.2075518]
[1746129922714,0.0337,96318.0,96317.0,0.2075518]
[1746129922918,0.2075432,96323.0,96322.0,0.2075389]
[1746129923115,0.2075432,96323.0,96322.0,0.5683389]
[1746129923928,0.2105432,96323.0,96322.0,0.5693389]
[1746129925715,0.2105432,96323.0,96322.0,0.6001389]
[1746129925921,0.2115432,96323.0,96322.0,0.6001389]
[1746129928723,0.2438432,96323.0,96322.0,0.6001389]
[1746129930231,0.2438432,96323.0,96322.0,0.2085389]
[1746129930631,0.23087893,96323.0,96322.0,0.2085389]
[1746129933726,0.23087893,96323.0,96322.0,0.2085432]
[1746129935941,0.23087893,96323.0,96322.0,0.2411432]
[1746129939332,0.0363,96323.0,96322.0,0.2411432]
[1746129939638,0.2085139,96336.0,96329.0,0.0518818]
[1746129939938,0.2085139,96336.0,96322.0,0.1655]
[1746129939939,0.0015,96340.0,96333.0,0.0518794]
[1746129940138,0.2408074,96339.0,96338.0,0.2075088]
[1746129940443,0.2728074,96339.0,96338.0,0.2075088]
[1746129941833,0.30721925,96339.0,96338.0,0.2075088]
[1746129942234,0.31121925,96339.0,96338.0,0.2085088]
[1746129942434,0.31521925,96339.0,96338.0,0.21624529]
[1746129942636,0.67601925,96339.0,96338.0,0.21624529]
[1746129942849,0.31521925,96339.0,96338.0,0.21624529]
[1746129947341,0.28321925,96339.0,96338.0,0.21624529]
[1746129949143,0.28321845,96339.0,96338.0,0.21624529]
[1746129955251,0.28321845,96339.0,96338.0,0.00873649]
[1746129955643,0.28321845,96339.0,96338.0,0.21624529]
[1746129956949,0.28321845,96339.0,96338.0,0.28084529]
[1746129957936,0.07571185,96339.0,96338.0,0.28084529]
[1746129958842,0.18619834,96370.0,96346.0,0.0518728]
[1746129959042,0.2074799,96353.0,96352.0,0.2074743]
[1746129959450,0.2703799,96353.0,96352.0,0.2074743]
[1746129960342,0.0629,96353.0,96352.0,0.2074743]
[1746129960544,0.2713765,96353.0,96352.0,0.2074743]
[1746129960846,0.2713765,96353.0,96352.0,0.2722743]
[1746129961053,0.2723765,96353.0,96352.0,0.2722743]
[1746129961453,0.2713765,96353.0,96352.0,0.2722743]
[1746129961752,0.2713765,96353.0,96352.0,0.2398743]
[1746129961952,0.2713765,96353.0,96352.0,0.2074743]
[1746129962543,0.6321765,96353.0,96352.0,0.2074743]
[1746129963240,0.2713765,96353.0,96352.0,0.2074743]
[1746129966555,0.2593584,96350.0,96349.0,0.2074831]
[1746129967052,0.3549584,96350.0,96349.0,0.2074831]
[1746129967849,0.3549584,96350.0,96349.0,0.2084831]
[1746129969756,0.3549584,96350.0,96349.0,0.001]
[1746129970656,0.3549584,96350.0,96349.0,0.2084851]
[1746129970864,0.8195464,96350.0,96349.0,0.001]
[1746129971156,0.2075066,96339.0,96338.0,0.21524529]
[1746129971357,0.2075088,96338.0,96337.0,0.5683109]
[1746129971554,0.2695088,96338.0,96337.0,0.3608]
[1746129972855,0.2695088,96338.0,96337.0,0.5683109]
[1746129973752,0.207506,96340.0,96339.0,0.2075066]
[1746129973954,0.0518741,96344.0,96343.0,0.207498]
[1746129973955,0.207501,96344.0,96343.0,0.207498]
[1746129974257,0.0318,96354.0,96343.0,0.207498]
[1746129974258,0.2074758,96354.0,96343.0,0.1518743]
[1746129974451,0.2382758,96354.0,96353.0,0.5682743]
[1746129975156,0.0308,96354.0,96353.0,0.5682743]
[1746129975458,0.2074743,96354.0,96353.0,0.5682743]
[1746129975958,0.2074743,96354.0,96353.0,0.6288743]
[1746129976656,0.2593392,96356.0,96354.0,0.2074743]
[1746129976856,0.2593364,96357.0,96356.0,0.2074678]
[1746129978561,0.29395071,96357.0,96356.0,0.2074678]
[1746129979265,0.29495071,96357.0,96356.0,0.2074678]
[1746129980159,0.29595071,96357.0,96356.0,0.2074678]
[1746129980663,0.24781781,96357.0,96356.0,0.2074678]
[1746129982864,0.03661431,96357.0,96356.0,0.2074678]
[1746129983064,0.03661431,96357.0,96356.0,0.3074678]
[1746129984666,0.2074426,96369.0,96365.0,0.2074506]
[1746129984862,0.0518551,96379.0,96374.0,0.2074312]
[1746129985056,0.051856,96378.0,96374.0,0.5682312]
[1746129985251,0.2089291,96375.0,96374.0,0.5682312]
[1746129985651,0.26094504,96375.0,96374.0,0.3608]
[1746129985854,0.2074355,96372.0,96371.0,0.07124]
[1746129986060,0.2074463,96367.0,96366.0,0.2626453]
[1746129986353,0.2074463,96367.0,96366.0,0.2593053]
[1746129986760,0.2074406,96370.0,96369.0,0.2074399]
[1746129987366,0.002,96372.0,96371.0,0.2074377]
[1746129987668,0.0316,96373.0,96371.0,0.3074377]
[1746129987859,0.2074355,96372.0,96371.0,0.3074377]
[1746129988166,0.2074328,96374.0,96373.0,0.2074334]
[1746129988361,0.207409,96387.0,96386.0,0.2073981]
[1746129988567,0.2592604,96387.0,96386.0,0.2073981]
[1746129988970,0.2074006,96389.0,96388.0,0.207399]
[1746129989160,0.0316,96393.0,96388.0,0.207399]
[1746129989161,0.0316,96393.0,96392.0,0.2073925]
[1746129989765,0.2088549,96410.0,96399.0,0.2073774]
[1746129989967,0.15068393,96400.0,96399.0,0.5681774]
[1746129990268,0.15068393,96400.0,96399.0,0.6681774]
[1746129990968,0.3103753,96400.0,96399.0,0.4608]
[1746129991167,0.3103753,96400.0,96399.0,0.3608]
[1746129991361,0.103,96400.0,96399.0,0.5681774]
[1746129992160,0.103,96400.0,96399.0,0.6995774]
[1746129992368,0.102,96400.0,96399.0,0.6995774]
[1746129992863,0.104,96400.0,96399.0,0.6995774]
[1746129993060,0.0332,96414.0,96409.0,0.2073559]
[1746129993260,0.2088538,96410.0,96409.0,0.2073559]
[1746129993456,0.0015,96410.0,96409.0,0.2073559]
[1746129993765,0.2088538,96410.0,96409.0,0.2073559]
[1746129994669,0.2108538,96410.0,96409.0,0.2073559]
[1746129994857,0.2108538,96410.0,96408.0,0.0315]
[1746129994858,0.2073559,96409.0,96408.0,0.0315]
[1746129995062,0.0326,96409.0,96406.0,0.1]
[1746129995263,0.2073666,96407.0,96406.0,0.3591985]
[1746129995971,0.0326,96409.0,96406.0,0.1518404]
[1746129996169,0.0581057,96410.0,96409.0,0.2073559]
[1746129996170,0.0561057,96410.0,96409.0,0.2073559]
[1746129996464,0.0015,96410.0,96409.0,0.5681559]
[1746129996666,0.2726237,96425.0,96424.0,0.2073237]
[1746129996866,0.0653,96425.0,96424.0,0.2073237]
[1746129997367,0.2726215,96425.0,96424.0,0.2073237]
[1746129997769,0.32566234,96425.0,96424.0,0.2073237]
[1746129998771,0.12234084,96425.0,96424.0,0.2073237]
[1746129998964,0.12534084,96425.0,96424.0,0.2073237]
[1746129999368,0.12534084,96425.0,96424.0,0.3110317]
[1746129999570,0.06004084,96425.0,96424.0,0.36064832]
[1746129999866,0.06004084,96425.0,96424.0,0.2405237]
[1746130000068,0.26736234,96425.0,96424.0,0.2405237]
[1746130000460,0.29876234,96425.0,96424.0,0.2405237]
[1746130000665,0.09144084,96425.0,96424.0,0.2405237]
[1746130000869,0.29876234,96425.0,96424.0,0.2073237]
[1746130001270,0.2073538,96410.0,96409.0,0.568155]
[1746130001572,0.2073517,96415.0,96414.0,0.3591771]
[1746130002465,0.2073517,96415.0,96414.0,0.1]
[1746130002671,0.2073538,96410.0,96409.0,0.3608]
[1746130004174,0.2073538,96410.0,96409.0,0.5681559]
[1746130004475,0.2073538,96410.0,96409.0,0.3608]
[1746130005268,0.2073581,96408.0,96407.0,0.20736]
[1746130005473,0.2073645,96405.0,96404.0,0.00155576]
[1746130005975,0.3110925,96405.0,96404.0,0.00155576]
[1746130007073,0.3110925,96405.0,96404.0,0.00255576]
[1746130008277,0.3441925,96405.0,96404.0,1e-08]
[1746130008680,0.3441925,96405.0,96404.0,0.00100001]
[1746130009167,0.2073904,96393.0,96392.0,0.00055613]
[1746130009371,0.5681904,96393.0,96392.0,0.00055613]
[1746130009972,0.6333904,96393.0,96392.0,0.00055613]
[1746130010277,0.6333904,96393.0,96392.0,0.00255613]
[1746130011977,0.6333904,96393.0,96392.0,0.00455613]
[1746130012673,0.6333904,96393.0,96392.0,0.00255613]
[1746130015875,0.2074485,96366.0,96361.0,0.3608]
[1746130016080,0.2074485,96366.0,96361.0,0.2074579]
[1746130016270,0.2074485,96366.0,96362.0,0.207457]
[1746130016470,0.2074485,96366.0,96358.0,0.0306]
[1746130016666,0.32609921,96366.0,96358.0,0.0306]
[1746130016883,0.32609921,96366.0,96364.0,0.3608]
[1746130017083,0.32609921,96366.0,96365.0,0.00603772]
[1746130017274,0.32609921,96366.0,96365.0,0.07023772]
[1746130017674,0.32609921,96366.0,96365.0,0.27768832]
[1746130018282,0.32609921,96366.0,96365.0,0.07023772]
[1746130019089,0.32709921,96366.0,96365.0,0.07623772]
[1746130020083,0.32709921,96366.0,96365.0,0.28368832]
[1746130020280,0.29399921,96366.0,96365.0,0.28368832]
[1746130020481,0.05325071,96366.0,96365.0,0.28368832]
[1746130020682,0.2084485,96366.0,96365.0,0.38368832]
[1746130020985,0.001,96366.0,96365.0,0.38368832]
[1746130021180,0.0518592,96372.0,96365.0,0.38368832]
[1746130021181,0.2074236,96380.0,96379.0,0.2074089]
[1746130021479,0.2074236,96380.0,96379.0,0.6682205]
[1746130021878,0.19446835,96380.0,96379.0,0.7006205]
[1746130022479,0.19446835,96380.0,96379.0,0.7036205]
[1746130022782,0.19446835,96380.0,96379.0,0.7056205]
[1746130023674,0.19446835,96380.0,96379.0,0.7066205]
[1746130023876,0.19446835,96380.0,96379.0,0.3992]
[1746130024075,0.22456835,96380.0,96379.0,0.0384]
[1746130024276,0.22556835,96380.0,96379.0,0.008]
[1746130024986,0.22456835,96380.0,96379.0,0.006]
[1746130025181,0.22456835,96380.0,96379.0,0.003]
[1746130025382,0.22456835,96380.0,96379.0,0.006]
[1746130025582,0.22456835,96380.0,96379.0,0.0369]
[1746130025783,0.22456835,96380.0,96379.0,0.0359]
[1746130026284,0.22456835,96380.0,96379.0,0.0339]
[1746130026491,0.22456835,96380.0,96379.0,0.0359]
[1746130026690,0.22456835,96380.0,96379.0,0.2433205]
[1746130027190,0.22456835,96380.0,96379.0,0.0329]
[1746130027391,0.22456835,96380.0,96379.0,0.0359]
[1746130027586,0.22456835,96380.0,96379.0,0.2433205]
[1746130028081,0.22456835,96380.0,96379.0,0.0359]
[1746130029288,0.0328,96381.0,96380.0,0.2074183]
[1746130029588,0.25865167,96388.0,96387.0,0.2074033]
[1746130030790,0.2074033,96387.0,96386.0,0.0329]
[1746130031094,0.2382033,96387.0,96386.0,0.2403054]
[1746130031484,0.2382033,96387.0,96386.0,0.24817191]
[1746130032094,0.2382033,96387.0,96386.0,0.04076651]
[1746130032285,0.25784788,96387.0,96386.0,0.24817191]
[1746130032481,0.25784788,96387.0,96386.0,0.04076651]
[1746130033101,0.25784788,96387.0,96386.0,0.24817191]
[1746130033394,0.25784788,96387.0,96386.0,0.24917191]
[1746130033889,0.25784788,96387.0,96386.0,0.24817191]
[1746130034096,0.25784788,96387.0,96386.0,0.25117191]
[1746130034293,0.25784788,96387.0,96386.0,0.25317191]
[1746130034594,0.25784788,96387.0,96386.0,0.28627191]
[1746130036692,0.25784788,96387.0,96386.0,0.28327191]
[1746130036893,0.25784788,96387.0,96386.0,0.28627191]
[1746130037097,0.25784788,96387.0,96386.0,0.07886651]
[1746130038195,0.25784788,96387.0,96386.0,0.01286651]
[1746130038396,0.61864788,96387.0,96386.0,0.01286651]
[1746130039296,0.61864788,96387.0,96386.0,0.01186651]
[1746130039598,0.25784788,96387.0,96386.0,0.01186651]
[1746130039795,0.25784788,96387.0,96386.0,0.00986651]
[1746130040492,0.25784788,96387.0,96386.0,0.00886651]
[1746130040798,0.22524788,96387.0,96386.0,0.57907191]
[1746130041294,0.22524788,96387.0,96386.0,0.57607191]
[1746130041595,0.22524788,96387.0,96386.0,0.57807191]
[1746130041796,0.22524788,96387.0,96386.0,0.63787191]
[1746130041993,0.22524788,96387.0,96386.0,0.63887191]
[1746130042390,0.0332,96392.0,96386.0,0.63887191]
[1746130042391,0.3608,96433.0,96402.0,0.0518423]
[1746130042600,0.3608,96433.0,96386.0,0.8570145]
[1746130042601,0.2073344,96419.0,96418.0,0.1]
[1746130042787,0.2591681,96419.0,96418.0,0.1]
[1746130042988,0.103716,96419.0,96407.0,0.4316]
[1746130043195,0.2073624,96406.0,96405.0,0.3608]
[1746130044200,0.2073624,96406.0,96405.0,0.5681645]
[1746130044399,0.2690624,96406.0,96405.0,0.5701645]
[1746130044797,0.2690624,96406.0,96405.0,0.3628]
[1746130044996,0.0617,96406.0,96405.0,0.5701645]
[1746130045205,0.0617,96406.0,96405.0,0.5711645]
[1746130045696,0.0518276,96431.0,96418.0,0.2073346]
[1746130045898,0.0323,96420.0,96419.0,0.5914329]
[1746130047800,0.0333,96420.0,96419.0,0.5914329]
[1746130048505,0.02034953,96420.0,96419.0,0.5914329]
[1746130048703,0.02134953,96420.0,96419.0,0.5914329]
[1746130048899,0.002,96420.0,96419.0,0.5914329]
[1746130049289,0.002,96420.0,96419.0,0.6914329]
[1746130049696,0.002,96420.0,96419.0,0.83329277]
[1746130049989,0.002,96420.0,96419.0,0.6914329]
[1746130050502,0.001,96420.0,96419.0,0.6914329]
[1746130050902,0.032,96424.0,96423.0,0.2073258]
[1746130051999,0.0518041,96474.0,96455.0,0.207257]
[1746130052198,0.05148024,96460.0,96455.0,0.378057]
[1746130052403,0.0309,96459.0,96455.0,0.378057]
[1746130053309,0.2072229,96471.0,96455.0,0.27447599]
[1746130053510,0.0309,96470.0,96469.0,0.2072257]
[1746130053808,0.2700248,96470.0,96469.0,0.2148848]
[1746130054499,0.2700248,96470.0,96469.0,0.0076591]
[1746130054701,0.2700248,96470.0,96469.0,0.207227]
[1746130055201,0.2710248,96470.0,96469.0,0.207227]
[1746130055706,0.2720248,96470.0,96469.0,0.207227]
[1746130055908,0.0648,96470.0,96469.0,0.207227]
[1746130056302,0.0339,96470.0,96469.0,0.21513472]
[1746130057207,0.0329,96470.0,96469.0,0.21513472]
[1746130057710,0.0319,96470.0,96469.0,0.21513472]
[1746130058307,0.2072105,96477.0,96469.0,0.21513472]
[1746130058308,0.2071835,96490.0,96479.0,0.2072055]
[1746130058496,0.0517945,96492.0,96479.0,0.2072055]
[1746130058497,0.0324,96488.0,96485.0,0.2071926]
[1746130058700,0.0329,96487.0,96485.0,0.2071926]
[1746130059307,0.08400213,96487.0,96485.0,0.2071926]
[1746130059701,0.0679,96486.0,96485.0,0.2071926]
[1746130060305,0.0659,96486.0,96485.0,0.2071926]
[1746130060508,0.0679,96486.0,96485.0,0.2071926]
[1746130060710,0.0699,96486.0,96485.0,0.2071926]
[1746130061314,0.2071966,96484.0,96478.0,0.0518015]
[1746130061609,0.244191,96486.0,96485.0,0.2071926]
[1746130061807,0.212191,96486.0,96485.0,0.2071926]
[1746130062406,0.210191,96486.0,96485.0,0.2071926]
[1746130062610,0.1,96500.0,96485.0,0.103644]
[1746130062812,0.3608,96520.0,96505.0,0.0517868]
[1746130063112,0.0069,96514.0,96513.0,0.2071325]
[1746130063809,0.42052234,96514.0,96513.0,0.2071325]
[1746130064004,0.3677,96514.0,96513.0,0.2071325]
[1746130064208,0.0069,96514.0,96512.0,0.0517832]
[1746130064407,0.0069,96514.0,96513.0,0.3230152]
[1746130065114,0.0099,96514.0,96513.0,0.3230152]
[1746130065416,0.0517698,96538.0,96524.0,0.2071089]
[1746130065607,0.051771,96536.0,96524.0,0.6384689]
[1746130065806,0.0517715,96535.0,96524.0,0.6384689]
[1746130066010,0.2070799,96538.0,96524.0,0.7384689]
[1746130066214,0.2070711,96542.0,96524.0,0.69786064]
[1746130066508,0.0325,96543.0,96542.0,0.2070703]
[1746130066713,0.0325,96543.0,96542.0,0.2776303]
[1746130066902,0.2395681,96543.0,96542.0,0.2776303]
[1746130067105,0.0325,96543.0,96542.0,0.2776303]
[1746130067311,0.2395681,96543.0,96542.0,0.2776303]
[1746130067508,0.08742069,96543.0,96542.0,0.64615954]
[1746130067915,0.001,96546.0,96545.0,0.2070638]
[1746130068119,0.2070681,96544.0,96543.0,0.2070672]
[1746130068414,0.2070681,96544.0,96543.0,0.2588341]
[1746130068815,0.2080632,96546.0,96545.0,0.2070638]
[1746130069011,0.2080632,96546.0,96542.0,0.43908924]
[1746130069012,0.2070681,96543.0,96542.0,0.50309492]
[1746130069309,0.2070681,96543.0,96542.0,0.57361492]
[1746130070414,0.2070681,96543.0,96542.0,0.57461492]
[1746130071021,0.2080681,96543.0,96542.0,0.57461492]
[1746130072516,0.2080681,96543.0,96542.0,0.07924924]
[1746130072707,0.2080681,96543.0,96542.0,0.00872924]
[1746130072903,0.5688681,96543.0,96542.0,0.00872924]
[1746130073203,0.207081,96537.0,96536.0,0.07052]
[1746130073412,0.207081,96537.0,96536.0,0.07839629]
[1746130073807,0.207081,96537.0,96536.0,0.00787629]